bitfinex/quotes_BTCUSD_20251230
["timestamp","ask_amount","ask_price","bid_price","bid_amount"]
[1767059369845,0.02219399,87333.0,87317.0,0.01148]
[1767059370046,0.01074357,87332.0,87317.0,0.01148]
[1767059370294,0.0107464,87331.0,87313.0,0.0002]
[1767059370599,0.01200891,87334.0,87315.0,0.01148]
[1767059370600,0.0107464,87330.0,87315.0,0.01148]
[1767059370821,0.0107464,87329.0,87315.0,0.01148]
[1767059371014,0.0107464,87328.0,87315.0,0.01148]
[1767059371242,0.0107464,87327.0,87315.0,0.01148]
[1767059371384,0.0107464,87326.0,87315.0,0.01148]
[1767059371566,0.0107464,87325.0,87315.0,0.01148]
[1767059371772,0.0107464,87324.0,87315.0,0.01148]
[1767059372145,0.0107464,87323.0,87315.0,0.01148]
[1767059372288,0.01145068,87331.0,87315.0,0.01148]
[1767059372494,0.01073914,87330.0,87315.0,0.01148]
[1767059372711,0.01073914,87329.0,87315.0,0.01148]
[1767059372913,0.01073914,87328.0,87315.0,0.01148]
[1767059373264,0.01073914,87327.0,87316.0,8e-07]
[1767059373877,0.01073914,87326.0,87316.0,8e-07]
[1767059374089,0.01073914,87325.0,87316.0,8e-07]
[1767059374285,0.01073914,87324.0,87316.0,8e-07]
[1767059374466,0.01073914,87323.0,87316.0,8e-07]
[1767059374781,0.01073914,87322.0,87316.0,8e-07]
[1767059375016,0.01073914,87321.0,87316.0,8e-07]
[1767059375195,0.03618868,87330.0,87316.0,8e-07]
[1767059375500,0.02218569,87329.0,87316.0,8e-07]
[1767059375680,0.01073475,87328.0,87316.0,8e-07]
[1767059375881,0.01073475,87327.0,87316.0,8e-07]
[1767059376079,0.01073475,87326.0,87316.0,8e-07]
[1767059376258,0.01073475,87325.0,87316.0,8e-07]
[1767059376465,0.01073475,87324.0,87316.0,8e-07]
[1767059376783,0.01073475,87323.0,87316.0,8e-07]
[1767059376959,0.01073475,87322.0,87316.0,8e-07]
[1767059377160,0.03617622,87331.0,87316.0,8e-07]
[1767059377389,0.01073157,87330.0,87316.0,8e-07]
[1767059377589,0.01073157,87329.0,87316.0,8e-07]
[1767059377787,0.01073157,87328.0,87316.0,8e-07]
[1767059377990,0.01145068,87331.0,87316.0,8e-07]
[1767059377991,0.01073157,87327.0,87316.0,8e-07]
[1767059378191,0.01073157,87326.0,87316.0,8e-07]
[1767059378395,0.01073157,87325.0,87316.0,8e-07]
[1767059378601,0.01073157,87324.0,87316.0,8e-07]
[1767059378798,0.01073157,87323.0,87316.0,8e-07]
[1767059378999,0.03620554,87333.0,87323.0,0.000106]
[1767059379201,0.01072936,87332.0,87316.0,8e-07]
[1767059379521,0.01072936,87331.0,87316.0,8e-07]
[1767059379678,0.01072936,87330.0,87316.0,8e-07]
[1767059379857,0.01072936,87329.0,87316.0,8e-07]
[1767059380061,0.01072936,87328.0,87316.0,8e-07]
[1767059380264,0.01072936,87327.0,87316.0,8e-07]
[1767059380463,0.01072936,87326.0,87316.0,8e-07]
[1767059380684,0.01072936,87325.0,87316.0,8e-07]
[1767059380888,0.01148,87333.0,87316.0,8e-07]
[1767059381082,0.01072833,87332.0,87316.0,8e-07]
[1767059381323,0.01072833,87331.0,87316.0,8e-07]
[1767059381524,0.01072833,87330.0,87316.0,8e-07]
[1767059381682,0.01072833,87329.0,87316.0,8e-07]
[1767059381882,0.01072833,87328.0,87316.0,8e-07]
[1767059382135,0.01072833,87327.0,87316.0,8e-07]
[1767059382303,0.01072833,87326.0,87316.0,8e-07]
[1767059382518,0.01148,87333.0,87316.0,8e-07]
[1767059382711,0.01072802,87332.0,87316.0,8e-07]
[1767059383026,0.01072802,87331.0,87316.0,8e-07]
[1767059383327,0.01072802,87330.0,87316.0,8e-07]
[1767059383542,0.01072802,87329.0,87316.0,8e-07]
[1767059383744,0.01072802,87328.0,87316.0,8e-07]
[1767059383907,0.01072802,87327.0,87316.0,8e-07]
[1767059384105,0.01072802,87326.0,87316.0,8e-07]
[1767059384442,0.01072802,87325.0,87316.0,8e-07]
[1767059384626,0.01148,87333.0,87325.0,0.00055]
[1767059384826,0.01072806,87332.0,87325.0,0.00015169]
[1767059384989,0.01072806,87331.0,87325.0,0.00015169]
[1767059385196,0.01072806,87330.0,87316.0,8e-07]
[1767059385392,0.01072806,87329.0,87316.0,8e-07]
[1767059385619,0.01072806,87328.0,87316.0,8e-07]
[1767059385912,0.01072806,87327.0,87316.0,8e-07]
[1767059386130,0.01072806,87326.0,87316.0,8e-07]
[1767059386450,0.01072806,87325.0,87316.0,8e-07]
[1767059386652,0.01148,87333.0,87316.0,8e-07]
[1767059386851,0.01072847,87332.0,87316.0,8e-07]
[1767059387050,0.01072847,87331.0,87316.0,8e-07]
[1767059387254,0.01072847,87330.0,87316.0,8e-07]
[1767059387452,0.01072847,87329.0,87316.0,8e-07]
[1767059387656,0.01072847,87328.0,87316.0,8e-07]
[1767059387838,0.01072847,87327.0,87316.0,8e-07]
[1767059388037,0.01072847,87326.0,87316.0,8e-07]
[1767059388224,0.01072847,87325.0,87316.0,8e-07]
[1767059388423,0.01148,87333.0,87316.0,8e-07]
[1767059388765,0.01072923,87332.0,87316.0,8e-07]
[1767059388953,0.01072923,87331.0,87316.0,8e-07]
[1767059389121,0.01072923,87330.0,87316.0,8e-07]
[1767059389320,0.01072923,87329.0,87316.0,8e-07]
[1767059389525,0.01072923,87328.0,87316.0,8e-07]
[1767059389731,0.01072923,87327.0,87316.0,8e-07]
[1767059389933,0.01072923,87326.0,87316.0,8e-07]
[1767059390146,0.01072923,87325.0,87316.0,8e-07]
[1767059390342,0.01148,87333.0,87316.0,8e-07]
[1767059390563,0.0107304,87332.0,87316.0,8e-07]
[1767059390772,0.0107304,87331.0,87316.0,8e-07]
[1767059391084,0.0107304,87330.0,87316.0,8e-07]
[1767059391231,0.0107304,87329.0,87316.0,8e-07]
[1767059391436,0.0107304,87328.0,87316.0,8e-07]
[1767059391675,0.0107304,87327.0,87316.0,8e-07]
[1767059391986,0.0107304,87326.0,87316.0,8e-07]
[1767059392197,0.0107304,87325.0,87316.0,8e-07]
[1767059392346,0.0107304,87324.0,87316.0,8e-07]
[1767059392553,0.01148,87333.0,87316.0,8e-07]
[1767059392890,0.01073202,87332.0,87316.0,8e-07]
[1767059393035,0.01073202,87331.0,87316.0,8e-07]
[1767059393240,0.01073202,87330.0,87316.0,8e-07]
[1767059393553,0.01073202,87329.0,87316.0,8e-07]
[1767059393747,0.0221831,87328.0,87303.0,0.1477]
[1767059393974,0.01073202,87327.0,87304.0,0.01148]
[1767059394294,0.01073202,87326.0,87304.0,0.01148]
[1767059394489,0.01145108,87328.0,87304.0,0.01148]
[1767059394490,0.01073202,87325.0,87304.0,0.01148]
[1767059394694,0.01073202,87324.0,87303.0,0.1477]
[1767059394915,0.01073202,87323.0,87302.0,0.0003447]
[1767059395216,0.02293147,87325.0,87304.0,0.01148]
[1767059395217,0.01073202,87322.0,87304.0,0.01148]
[1767059395343,0.01073202,87321.0,87304.0,0.01148]
[1767059395544,0.01073202,87320.0,87304.0,0.01148]
[1767059395745,0.01073202,87319.0,87304.0,0.01148]
[1767059396079,0.0114516,87324.0,87304.0,0.01148]
[1767059396080,0.01073202,87318.0,87304.0,0.01148]
[1767059396259,0.01073202,87317.0,87304.0,0.01148]
[1767059396458,0.01073202,87316.0,87304.0,0.01148]
[1767059396686,0.01073202,87315.0,87304.0,0.01148]
[1767059396886,0.01073202,87314.0,87304.0,0.01148]
[1767059397060,0.000397,87304.0,87293.0,0.0001447]
[1767059397284,0.01073202,87303.0,87293.0,0.00022708]
[1767059397489,0.01073202,87302.0,87293.0,0.00022708]
[1767059397751,0.01148,87313.0,87293.0,0.00022708]
[1767059397923,0.01073125,87312.0,87293.0,0.00022708]
[1767059398228,0.01145344,87310.0,87293.0,0.00022708]
[1767059398545,0.01073125,87309.0,87293.0,0.00022708]
[1767059398885,0.01073125,87308.0,87293.0,0.00022708]
[1767059399090,0.01073125,87307.0,87293.0,0.00022708]
[1767059399291,0.01073125,87306.0,87293.0,0.00022708]
[1767059399514,0.01057925,87305.0,87294.0,0.01145554]
[1767059399675,0.03085375,87320.0,87293.0,0.14632708]
[1767059399676,0.02472998,87319.0,87293.0,0.05750513]
[1767059399876,0.0002,87315.0,87296.0,0.15755527]
[1767059400137,0.0002,87315.0,87298.0,0.1461]
[1767059400288,0.01168,87315.0,87298.0,0.1461]
[1767059402840,0.01168,87315.0,87298.0,0.15755501]
[1767059403195,0.0002,87315.0,87303.0,0.01145436]
[1767059404123,0.0002,87315.0,87302.0,0.01145449]
[1767059404324,0.0001447,87324.0,87305.0,0.1461]
[1767059404551,0.01148,87320.0,87305.0,0.1461]
[1767059404747,0.01148,87320.0,87307.0,0.0002]
[1767059410111,0.0001447,87324.0,87307.0,0.0002]
[1767059410313,0.286918,87321.0,87307.0,0.0002]
[1767059411630,0.0107179,87320.0,87307.0,0.0002]
[1767059411846,0.0107179,87319.0,87307.0,0.0002]
[1767059411986,0.0107179,87318.0,87307.0,0.0002]
[1767059412181,0.0107179,87317.0,87307.0,0.0002]
[1767059412386,0.0107179,87316.0,87307.0,0.0002]
[1767059412645,0.01148,87322.0,87307.0,0.0002]
[1767059412833,0.01071852,87321.0,87307.0,0.0002]
[1767059413013,0.01071852,87320.0,87307.0,0.0002]
[1767059413215,0.01071852,87319.0,87307.0,0.0002]
[1767059413481,0.01071852,87318.0,87307.0,0.0002]
[1767059413689,0.01071852,87317.0,87307.0,0.0002]
[1767059413912,0.01071852,87316.0,87307.0,0.0002]
[1767059414119,0.01148,87322.0,87307.0,0.0002]
[1767059414330,0.01071973,87321.0,87307.0,0.0002]
[1767059414537,0.01071973,87320.0,87307.0,0.0002]
[1767059414750,0.01071973,87319.0,87307.0,0.0002]
[1767059414995,0.01071973,87318.0,87307.0,0.0002]
[1767059415203,0.01071973,87317.0,87307.0,0.0002]
[1767059415408,0.01071973,87316.0,87307.0,0.0002]
[1767059415608,0.01148,87322.0,87307.0,0.0002]
[1767059415815,0.01072089,87321.0,87307.0,0.0002]
[1767059416023,0.01148,87322.0,87307.0,0.0002]
[1767059416024,0.01072089,87320.0,87307.0,0.0002]
[1767059416235,0.01072089,87319.0,87307.0,0.0002]
[1767059416447,0.01072089,87318.0,87307.0,0.0002]
[1767059416685,0.01148,87322.0,87307.0,0.0002]
[1767059416686,0.01072089,87317.0,87307.0,0.0002]
[1767059416869,0.01072089,87316.0,87307.0,0.0002]
[1767059417117,0.01072089,87315.0,87307.0,0.0002]
[1767059417336,0.01148,87322.0,87307.0,0.0002]
[1767059417593,0.01148,87322.0,87305.0,0.1461]
[1767059417594,0.01145239,87318.0,87305.0,0.1461]
[1767059417810,0.000899,87305.0,87302.0,0.01148]
[1767059418018,0.01145252,87317.0,87302.0,0.01148]
[1767059418237,0.02217608,87316.0,87302.0,0.01148]
[1767059418449,0.01145252,87317.0,87302.0,0.01148]
[1767059418450,0.01072343,87315.0,87302.0,0.01148]
[1767059418657,0.01072343,87314.0,87302.0,0.01148]
[1767059418869,0.01072343,87313.0,87302.0,0.01148]
[1767059419055,0.01072343,87312.0,87302.0,0.01148]
[1767059419270,0.01145226,87319.0,87302.0,0.01148]
[1767059419485,0.01072604,87318.0,87302.0,0.01148]
[1767059419699,0.01072604,87317.0,87302.0,0.01148]
[1767059419908,0.01145226,87319.0,87302.0,0.01148]
[1767059419909,0.01072604,87316.0,87302.0,0.01148]
[1767059420150,0.01072604,87315.0,87302.0,0.01148]
[1767059420391,0.01072604,87314.0,87302.0,0.01148]
[1767059420616,0.01072604,87313.0,87302.0,0.01148]
[1767059420821,0.01072604,87312.0,87302.0,0.01148]
[1767059421034,0.01072604,87311.0,87302.0,0.01148]
[1767059421170,0.01145226,87319.0,87302.0,0.01148]
[1767059421414,0.07944289,87318.0,87302.0,0.01148]
[1767059421590,0.01072802,87317.0,87302.0,0.01148]
[1767059422214,0.01072802,87316.0,87302.0,0.01148]
[1767059422413,0.01072802,87315.0,87302.0,0.01148]
[1767059422619,0.01072802,87314.0,87302.0,0.01148]
[1767059422823,0.01072802,87313.0,87302.0,0.01148]
[1767059423038,0.01072802,87312.0,87302.0,0.01148]
[1767059423320,0.01072802,87311.0,87302.0,0.01148]
[1767059423524,0.01072802,87310.0,87302.0,0.01148]
[1767059423765,0.01072802,87309.0,87302.0,0.01148]
[1767059423971,0.01072802,87308.0,87302.0,0.01148]
[1767059424193,0.01145239,87318.0,87302.0,0.01148]
[1767059424392,0.01073502,87317.0,87302.0,0.01148]
[1767059424595,0.01073502,87316.0,87302.0,0.01148]
[1767059424722,0.01073502,87315.0,87302.0,0.01148]
[1767059424929,0.02221502,87314.0,87302.0,0.01148]
[1767059425152,0.01073502,87313.0,87302.0,0.01148]
[1767059434336,0.01073502,87312.0,87302.0,0.01148]
[1767059434513,0.01073502,87311.0,87302.0,0.01148]
[1767059434730,0.01018602,87310.0,87302.0,0.01148]
[1767059434852,0.01148,87314.0,87302.0,0.01148]
[1767059441206,0.01148,87318.0,87302.0,0.01148]
[1767059441406,0.05558,87323.0,87302.0,0.01148]
[1767059441611,0.01148,87318.0,87302.0,0.16056]
[1767059441822,0.01148,87318.0,87302.0,0.17201449]
[1767059443583,0.0001447,87324.0,87310.0,0.01145344]
[1767059443758,0.01148,87323.0,87307.0,0.14908]
[1767059443957,0.5201474,87320.0,87307.0,0.16053383]
[1767059444147,0.5201474,87320.0,87308.0,0.14908]
[1767059444341,0.5201474,87320.0,87309.0,0.01145357]
[1767059444582,0.5201474,87320.0,87308.0,0.1605337]
[1767059445726,4.7e-06,87327.0,87320.0,0.00055]
[1767059446082,0.5201474,87330.0,87320.0,0.00055]
[1767059446286,0.5201474,87330.0,87315.0,0.144]
[1767059446651,0.01073988,87329.0,87315.0,0.144]
[1767059446867,0.01073988,87328.0,87315.0,0.144]
[1767059447084,0.01073988,87327.0,87315.0,0.144]
[1767059447292,0.01073988,87326.0,87315.0,0.144]
[1767059447493,0.01073988,87325.0,87315.0,0.144]
[1767059447706,6.174e-05,87329.0,87315.0,0.144]
[1767059447707,0.01073988,87324.0,87315.0,0.15545278]
[1767059447907,6.174e-05,87329.0,87315.0,0.144]
[1767059448086,6.174e-05,87329.0,87315.0,0.15545278]
[1767059449340,6.174e-05,87329.0,87315.0,0.144]
[1767059449899,6.174e-05,87329.0,87315.0,0.15545278]
[1767059450095,6.174e-05,87329.0,87315.0,0.144]
[1767059450300,1.74e-06,87329.0,87315.0,0.15545278]
[1767059451184,1.74e-06,87329.0,87315.0,0.144]
[1767059451587,1.74e-06,87329.0,87315.0,0.15545278]
[1767059451803,1.74e-06,87329.0,87318.0,0.05726191]
[1767059452518,1.74e-06,87329.0,87319.0,0.01145226]
[1767059452714,1.74e-06,87329.0,87320.0,0.01145213]
[1767059452950,1.74e-06,87329.0,87317.0,0.01145252]
[1767059453705,1.74e-06,87329.0,87319.0,0.01145226]
[1767059454174,1.74e-06,87329.0,87320.0,0.01145213]
[1767059454616,1.74e-06,87329.0,87321.0,0.01145199]
[1767059454818,1.74e-06,87329.0,87320.0,0.01145213]
[1767059455033,1.74e-06,87329.0,87321.0,0.01145199]
[1767059455655,1.74e-06,87329.0,87319.0,0.01145226]
[1767059455853,1.74e-06,87329.0,87318.0,0.01145239]
[1767059456133,1.74e-06,87329.0,87317.0,0.01145252]
[1767059456335,1.74e-06,87329.0,87318.0,0.01145239]
[1767059456563,1.74e-06,87329.0,87315.0,0.15545278]
[1767059456987,1.74e-06,87329.0,87319.0,0.01145226]
[1767059457188,1.74e-06,87329.0,87318.0,0.01145239]
[1767059457611,1.74e-06,87329.0,87319.0,0.01145226]
[1767059458279,1.74e-06,87329.0,87315.0,0.20126392]
[1767059458485,1.74e-06,87329.0,87316.0,0.01145265]
[1767059458697,1.74e-06,87329.0,87315.0,0.144]
[1767059460159,1.74e-06,87329.0,87314.0,0.01148]
[1767059460373,0.02217211,87328.0,87314.0,0.01093]
[1767059460576,0.01072103,87327.0,87314.0,0.01093]
[1767059460775,0.01072103,87327.0,87302.0,0.21277135]
[1767059460978,0.01145268,87329.0,87304.0,0.01145422]
[1767059461107,0.01072139,87328.0,87306.0,0.01145396]
[1767059461310,0.01072139,87327.0,87305.0,0.01145409]
[1767059461512,0.01072163,87326.0,87303.0,0.01148]
[1767059461709,0.01148174,87329.0,87303.0,0.01148]
[1767059461710,0.0114516,87324.0,87303.0,0.01148]
[1767059461922,0.01072163,87323.0,87303.0,0.01148]
[1767059462682,0.02217336,87323.0,87303.0,0.01148]
[1767059462866,0.5201474,87320.0,87303.0,0.01148]
[1767059463243,0.01148174,87329.0,87320.0,0.000549]
[1767059463448,0.01072362,87328.0,87320.0,0.000549]
[1767059463647,0.01072362,87327.0,87311.0,0.01148]
[1767059463847,0.01072362,87326.0,87311.0,0.02293331]
[1767059464103,0.01072362,87325.0,87311.0,0.01148]
[1767059464235,0.01072362,87324.0,87311.0,0.01148]
[1767059464443,0.01072362,87323.0,87311.0,0.01148]
[1767059464646,0.01072362,87322.0,87311.0,0.01148]
[1767059464904,1.74e-06,87329.0,87322.0,0.000549]
[1767059465054,0.01072375,87328.0,87322.0,0.0001507]
[1767059465401,1.74e-06,87329.0,87315.0,0.01145278]
[1767059465610,0.01072406,87328.0,87315.0,0.01145278]
[1767059465864,1.74e-06,87329.0,87315.0,0.01145278]
[1767059466200,0.01072403,87328.0,87315.0,0.01145278]
[1767059466405,0.01072403,87327.0,87315.0,0.01145278]
[1767059466610,1.74e-06,87329.0,87317.0,0.01145252]
[1767059466814,0.01072492,87328.0,87317.0,0.01145252]
[1767059467043,0.01072492,87327.0,87315.0,0.01145278]
[1767059467242,1.74e-06,87329.0,87314.0,0.01145291]
[1767059467445,0.01072582,87328.0,87314.0,0.01145291]
[1767059467669,0.01072582,87327.0,87314.0,0.01145291]
[1767059467888,0.13753345,87324.0,87311.0,0.01148]
[1767059468081,0.01072582,87323.0,87311.0,0.01148]
[1767059468493,0.13753345,87324.0,87311.0,0.01148]
[1767059469046,0.01072764,87323.0,87311.0,0.01148]
[1767059469292,0.13753345,87324.0,87311.0,0.01148]
[1767059469424,0.01072927,87323.0,87311.0,0.01148]
[1767059469651,0.13753345,87324.0,87311.0,0.01148]
[1767059469856,0.01072927,87323.0,87311.0,0.01148]
[1767059470061,0.13753345,87324.0,87311.0,0.01148]
[1767059470272,0.01073082,87323.0,87311.0,0.01148]
[1767059470473,0.01073082,87322.0,87311.0,0.01148]
[1767059470728,0.13753345,87324.0,87311.0,0.01148]
[1767059471087,0.01073117,87323.0,87311.0,0.01148]
[1767059471298,0.13753345,87324.0,87311.0,0.01148]
[1767059471299,0.01073117,87322.0,87311.0,0.01148]
[1767059471502,0.13753345,87324.0,87311.0,0.01148]
[1767059471702,0.01073344,87323.0,87311.0,0.01148]
[1767059471851,0.01073344,87322.0,87311.0,0.01148]
[1767059472109,0.13753345,87324.0,87311.0,0.01148]
[1767059472312,0.01073482,87323.0,87311.0,0.01148]
[1767059472442,0.13753345,87324.0,87311.0,0.01148]
[1767059472443,0.01073482,87322.0,87311.0,0.01148]
[1767059472640,0.01073482,87321.0,87311.0,0.01148]
[1767059472885,0.13753345,87324.0,87311.0,0.01148]
[1767059473087,0.01073509,87323.0,87311.0,0.01148]
[1767059473295,0.01073509,87322.0,87311.0,0.01148]
[1767059473498,0.1138815,87324.0,87311.0,0.01148]
[1767059474501,0.1138815,87324.0,87311.0,0.011082]
[1767059474502,0.52009362,87321.0,87311.0,0.011082]
[1767059474959,0.1138815,87324.0,87302.0,0.0001447]
[1767059475205,0.52009362,87320.0,87303.0,0.01148]
[1767059475564,0.1138815,87324.0,87303.0,0.01148]
[1767059477473,0.52009362,87320.0,87303.0,0.01148]
[1767059477845,0.13753345,87310.0,87295.0,0.0002]
[1767059478056,0.65762707,87310.0,87299.0,0.01148]
[1767059481139,0.0114537,87308.0,87295.0,0.01168]
[1767059481349,0.65762707,87310.0,87295.0,0.01168]
[1767059481731,0.66908051,87310.0,87295.0,0.01168]
[1767059481933,0.0114537,87308.0,87295.0,0.01168]
[1767059482135,0.01145357,87309.0,87295.0,0.01163902]
[1767059482545,0.66908051,87310.0,87295.0,0.01163902]
[1767059482757,0.65762707,87310.0,87295.0,0.01163902]
[1767059483683,0.52009362,87305.0,87295.0,0.01163902]
[1767059483906,0.01145422,87304.0,87293.0,0.0001447]
[1767059484118,0.52009362,87303.0,87293.0,0.0001447]
[1767059484758,0.01145475,87300.0,87293.0,0.0001447]
[1767059484957,0.14506,87301.0,87293.0,0.0001447]
[1767059485598,0.01071816,87300.0,87293.0,0.0001447]
[1767059485808,0.14506,87301.0,87293.0,0.0001447]
[1767059486007,0.15651462,87301.0,87293.0,0.0002047]
[1767059486166,0.14506,87301.0,87293.0,0.0002047]
[1767059486763,0.15651462,87301.0,87293.0,0.0002047]
[1767059487257,0.01145475,87300.0,87293.0,0.0002047]
[1767059487364,0.14506,87301.0,87287.0,0.0111496]
[1767059487575,0.14506,87301.0,87287.0,0.01123198]
[1767059487826,0.52009362,87300.0,87287.0,0.01123198]
[1767059488327,0.14506,87301.0,87287.0,0.01123198]
[1767059488519,0.52009362,87300.0,87287.0,0.01123198]
[1767059493423,0.52009362,87300.0,87287.0,0.02268843]
[1767059493625,0.52009362,87300.0,87287.0,0.01123198]
[1767059493824,0.51954462,87300.0,87287.0,0.01123198]
[1767059494027,0.51954462,87300.0,87288.0,0.01145632]
[1767059495114,0.51954462,87300.0,87289.0,0.01145619]
[1767059496001,9.85e-06,87300.0,87292.0,0.0114558]
[1767059496161,0.66515362,87310.0,87294.0,0.01145554]
[1767059496368,0.02219111,87309.0,87294.0,0.01145554]
[1767059496606,0.01071111,87308.0,87292.0,0.0114558]
[1767059496926,0.01071111,87307.0,87292.0,0.0114558]
[1767059497071,0.01148,87309.0,87292.0,0.0114558]
[1767059497272,0.0107111,87308.0,87290.0,0.53154968]
[1767059497477,0.0107111,87307.0,87291.0,0.01145593]
[1767059497678,0.00588601,87306.0,87291.0,0.01145593]
[1767059497884,0.01148,87309.0,87291.0,0.01145593]
[1767059498377,0.01148,87309.0,87287.0,0.06851412]
[1767059498580,0.01148,87309.0,87290.0,0.52009362]
[1767059499005,0.01148,87309.0,87290.0,0.53154968]
[1767059499507,0.01148,87309.0,87290.0,0.52009362]
[1767059499712,0.01148,87309.0,87290.0,0.53154968]
[1767059499913,0.01148,87309.0,87288.0,0.01145632]
[1767059500117,0.01148,87309.0,87290.0,0.52009362]
[1767059500719,0.01148,87309.0,87288.0,0.01145632]
[1767059501136,0.01148,87309.0,87287.0,0.02268843]
[1767059501281,0.01148,87309.0,87288.0,0.01145632]
[1767059501631,0.01148,87309.0,87287.0,0.01123198]
[1767059501835,0.01148,87309.0,87287.0,0.07997061]
[1767059501983,0.01148,87309.0,87289.0,0.01145619]
[1767059502598,0.00665491,87309.0,87291.0,0.01145593]
[1767059502798,0.00762959,87309.0,87291.0,0.01145593]
[1767059503100,0.00758837,87309.0,87299.0,0.0002]
[1767059503337,0.00758837,87309.0,87289.0,0.01145619]
[1767059503745,0.00758837,87309.0,87291.0,0.01145593]
[1767059503949,0.52009362,87301.0,87292.0,0.0114558]
[1767059504572,0.52009362,87301.0,87293.0,0.01145567]
[1767059505599,0.52009362,87301.0,87290.0,0.01145606]
[1767059506516,0.52009362,87301.0,87291.0,0.01145593]
[1767059506674,0.52009362,87301.0,87292.0,0.0114558]
[1767059506876,0.52009362,87301.0,87285.0,0.01160142]
[1767059507057,0.52009362,87301.0,87287.0,0.02268843]
[1767059507258,0.52009362,87301.0,87287.0,0.01123198]
[1767059508359,0.00010999,87300.0,87287.0,0.01123198]
[1767059509119,0.00010999,87300.0,87288.0,0.01145632]
[1767059509321,0.00010999,87300.0,87291.0,0.01145593]
[1767059509479,0.00010999,87300.0,87289.0,0.01145619]
[1767059509684,0.0107412,87299.0,87287.0,0.02268843]
[1767059509891,0.0107412,87298.0,87287.0,0.02268843]
[1767059510095,0.0107412,87297.0,87288.0,0.01148]
[1767059510295,0.01074379,87296.0,87287.0,0.01148]
[1767059510539,0.14628,87298.0,87287.0,2e-05]
[1767059510739,0.01074378,87297.0,87287.0,2e-05]
[1767059510936,0.01074378,87296.0,87287.0,2e-05]
[1767059511135,0.52009362,87301.0,87287.0,0.01147645]
[1767059511343,0.01074443,87300.0,87288.0,0.01145632]
[1767059511512,0.01074443,87299.0,87288.0,0.01145632]
[1767059511709,0.01074443,87298.0,87287.0,0.01147645]
[1767059511956,0.01074443,87297.0,87287.0,0.01147645]
[1767059512205,0.01074443,87296.0,87287.0,0.01147645]
[1767059512410,0.52009362,87301.0,87287.0,0.01147645]
[1767059512584,0.01074497,87300.0,87287.0,0.01147645]
[1767059512786,0.01074497,87299.0,87288.0,0.01145632]
[1767059513092,0.00010999,87296.0,87288.0,0.01145632]
[1767059513295,0.52009362,87300.0,87289.0,0.01145619]
[1767059513508,0.01074542,87299.0,87289.0,0.01145619]
[1767059513708,0.01074542,87298.0,87287.0,2e-05]
[1767059513932,0.01074542,87297.0,87287.0,2e-05]
[1767059514159,0.01074542,87296.0,87288.0,0.01145632]
[1767059514383,0.52020141,87300.0,87287.0,0.02291461]
[1767059514610,0.01074541,87299.0,87287.0,0.01148]
[1767059514857,0.01074541,87298.0,87287.0,0.01148]
[1767059515111,0.01074541,87297.0,87287.0,0.01148]
[1767059515318,0.01074541,87296.0,87287.0,0.01148]
[1767059515548,0.52020141,87300.0,87287.0,0.01148]
[1767059515793,0.0107457,87299.0,87287.0,0.01148]
[1767059516013,0.0107457,87298.0,87287.0,0.01143653]
[1767059516245,0.0107457,87297.0,87287.0,0.01143653]
[1767059516444,0.0107457,87296.0,87287.0,0.02289298]
[1767059516651,0.52020141,87300.0,87287.0,0.01143653]
[1767059516806,0.01074591,87299.0,87287.0,0.01143653]
[1767059517006,0.01074591,87298.0,87287.0,0.01143653]
[1767059517231,0.01074591,87297.0,87287.0,0.01143653]
[1767059517440,0.01074591,87296.0,87287.0,0.01143653]
[1767059517612,0.52020141,87300.0,87287.0,0.01143653]
[1767059517794,0.01074615,87299.0,87287.0,0.01143653]
[1767059517994,0.15552615,87298.0,87287.0,0.01148]
[1767059518251,0.52020141,87300.0,87287.0,0.01148]
[1767059518252,0.01074615,87297.0,87287.0,0.01148]
[1767059518557,0.01074615,87296.0,87287.0,0.01148]
[1767059518735,0.52020141,87300.0,87287.0,0.01148]
[1767059518937,0.01074644,87299.0,87287.0,0.01148]
[1767059519091,0.01074644,87298.0,87287.0,0.01148]
[1767059519296,0.01074644,87297.0,87287.0,0.01148]
[1767059519496,0.01074644,87296.0,87287.0,0.01148]
[1767059519697,0.52020141,87300.0,87287.0,0.01148]
[1767059519892,0.01074684,87299.0,87286.0,0.01145659]
[1767059520157,0.01074684,87298.0,87287.0,0.01148]
[1767059520358,0.01074684,87297.0,87287.0,0.01148]
[1767059520595,0.01074684,87296.0,87287.0,0.01148]
[1767059520801,0.01074684,87295.0,87287.0,0.011372]
[1767059521007,0.01074684,87294.0,87287.0,0.011372]
[1767059521210,0.52020141,87300.0,87287.0,0.01132936]
[1767059521357,0.01074785,87299.0,87287.0,0.01132936]
[1767059521563,0.01074785,87298.0,87287.0,0.01132936]
[1767059521757,0.01074785,87297.0,87287.0,0.01132936]
[1767059521983,0.01074785,87296.0,87287.0,0.01128657]
[1767059522158,0.01074785,87295.0,87285.0,4.7e-06]
[1767059522381,0.01074785,87294.0,87285.0,4.7e-06]
[1767059522566,0.01074785,87293.0,87285.0,4.7e-06]
[1767059522775,0.14478,87299.0,87285.0,4.7e-06]
[1767059522974,0.14478,87297.0,87285.0,4.7e-06]
[1767059523180,0.01074823,87296.0,87285.0,4.7e-06]
[1767059523467,0.01074823,87295.0,87284.0,2.5e-07]
[1767059523706,0.52009362,87285.0,87275.0,0.02599627]
[1767059523892,0.15552823,87294.0,87275.0,0.02599627]
[1767059523893,0.01074823,87284.0,87275.0,0.02599627]
[1767059524042,0.01019923,87283.0,87275.0,0.02599627]
[1767059524237,0.52009362,87290.0,87275.0,0.02599627]
[1767059524785,0.52009362,87290.0,87275.0,0.02613347]
[1767059525400,0.52009362,87285.0,87275.0,0.02613347]
[1767059528755,0.52009362,87285.0,87275.0,0.02558447]
[1767059530359,0.01148,87288.0,87275.0,0.02558447]
[1767059530568,0.52009362,87285.0,87275.0,0.02558447]
[1767059531166,0.01148,87288.0,87275.0,0.02558447]
[1767059531495,0.52009362,87285.0,87275.0,0.02558447]
[1767059532485,0.01148,87288.0,87275.0,0.0370425]
[1767059532690,0.42883362,87285.0,87276.0,0.0114579]
[1767059532902,0.01148,87288.0,87276.0,0.0114579]
[1767059532903,0.52009362,87286.0,87276.0,0.0115951]
[1767059533097,0.52009362,87286.0,87278.0,0.01145764]
[1767059533258,0.52009362,87286.0,87276.0,0.06888398]
[1767059533259,0.53157362,87288.0,87276.0,0.0001372]
[1767059533452,0.52009362,87286.0,87276.0,0.0115951]
[1767059533809,0.52009362,87286.0,87276.0,0.0001372]
[1767059534592,0.01148,87288.0,87276.0,0.0001372]
[1767059537842,0.01148,87288.0,87276.0,2e-07]
[1767059545414,0.01073703,87287.0,87276.0,2e-07]